lending/lending_fUSD_20241005
["ID","MTS","AMOUNT","RATE_DAILY","PERIOD"]
[339898754,1728147087266,-500.0,0.00039178,30]
[339898755,1728147087275,-500.0,0.00039178,30]
[339898756,1728147087285,-500.0,0.00039178,30]
[339898757,1728147087294,-500.0,0.00039178,30]
[339898758,1728147087304,-904.62,0.00039178,30]
[339898759,1728147087314,-500.0,0.00039178,30]
[339898760,1728147087324,-500.0,0.00039178,30]
[339898761,1728147087335,-500.0,0.00039178,30]
[339898762,1728147087348,-300.0,0.00039178,30]
[339898763,1728147087358,-1342.248124,0.00039178,14]
[339898764,1728147087368,-629.14,0.00039178,30]
[339898765,1728147087378,-1015.81,0.00039178,30]
[339898766,1728147087388,-500.0,0.00039178,30]
[339898767,1728147087399,-500.0,0.00039178,30]
[339898768,1728147087408,-934.77,0.00039178,30]
[339898769,1728147087418,-500.0,0.00039178,7]
[339898770,1728147087428,-500.0,0.00039178,30]
[339898771,1728147087438,-500.0,0.00039178,30]
[339898772,1728147087447,-1120.82,0.00039178,30]
[339898773,1728147087457,-790.26,0.00039178,30]
[339898774,1728147087468,-803.58,0.00039178,30]
[339898775,1728147087477,-500.0,0.00039178,30]
[339898776,1728147087487,-1342.248124,0.00039178,14]
[339898777,1728147087497,-500.0,0.00039178,30]
[339898778,1728147087506,-617.73,0.00039178,30]
[339898779,1728147087516,-240.55475977,0.00039178,2]
[339898780,1728147087525,-500.0,0.00039178,30]
[339898781,1728147087535,-500.0,0.00039178,30]
[339898782,1728147087544,-500.0,0.00039178,30]
[339898783,1728147087554,-816.66,0.00039178,30]
[339898784,1728147087563,-500.0,0.00039178,30]
[339898785,1728147087573,-500.0,0.00039178,2]
[339898786,1728147087583,-1440.54,0.00039178,30]
[339898787,1728147087592,-500.0,0.00039178,30]
[339898788,1728147087601,-1168.27,0.00039178,30]
[339898789,1728147087611,-500.0,0.00039178,30]
[339898790,1728147087621,-684.57,0.00039178,30]
[339898791,1728147087631,-500.0,0.00039178,30]
[339898792,1728147087641,-500.0,0.00039178,30]
[339898793,1728147087651,-500.0,0.00039178,30]
[339898794,1728147087660,-1163.33,0.00039178,30]
[339898795,1728147087670,-886.94,0.00039178,30]
[339898796,1728147087680,-790.06,0.00039178,30]
[339898797,1728147087690,-500.0,0.00039178,30]
[339898798,1728147087700,-1108.4,0.00039178,30]
[339898799,1728147087710,-616.59942747,0.00039178,30]
[339898800,1728147087721,-500.0,0.00039178,30]
[339898801,1728147087731,-1783.85,0.00039178,30]
[339898802,1728147087741,-500.0,0.00039178,30]
[339898803,1728147087751,-1126.93053,0.00039208,30]
[339898804,1728147087761,-150.0,0.00039399,120]
[339898805,1728147087771,-1000.0,0.000394,15]
[339898806,1728147087781,-1126.93053,0.00039408,30]
[339898807,1728147087791,-999.0,0.00039452,120]
[339898808,1728147087801,-13321.75640812,0.00039589,31]
[339898809,1728147087811,-668.66,0.00039589,30]
[339898810,1728147087821,-1684.72,0.00039589,30]
[339898811,1728147087831,-338.9484152,0.00039589,30]
[339898812,1728147087841,-500.0,0.00039589,30]
[339898813,1728147087851,-500.0,0.00039589,30]
[339898814,1728147087861,-500.0,0.00039589,30]
[339898815,1728147087871,-500.0,0.00039589,30]
[339898816,1728147087880,-500.0,0.00039589,30]
[339898817,1728147087890,-500.0,0.00039589,30]
[339898818,1728147087900,-514.40195848,0.00039589,16]
[339898819,1728147087910,-500.0,0.00039589,30]
[339898820,1728147087920,-274.56305062,0.00039589,30]
[339898821,1728147087929,-500.0,0.00039589,30]
[339898822,1728147087939,-500.0,0.00039589,30]
[339898823,1728147087949,-500.0,0.00039589,30]
[339898824,1728147087959,-500.0,0.00039589,30]
[339898825,1728147087971,-500.0,0.00039589,30]
[339898826,1728147087981,-500.0,0.00039589,30]
[339898827,1728147087990,-500.0,0.00039589,30]
[339898828,1728147088000,-500.0,0.00039589,30]
[339898829,1728147088009,-500.0,0.00039589,30]
[339898830,1728147088020,-500.0,0.00039589,30]
[339898831,1728147088029,-500.0,0.00039589,30]
[339898832,1728147088040,-500.0,0.00039589,30]
[339898833,1728147088050,-500.0,0.00039589,30]
[339898834,1728147088060,-500.0,0.00039589,30]
[339898835,1728147088070,-500.0,0.00039589,30]
[339898836,1728147088080,-500.0,0.00039589,30]
[339898837,1728147088090,-500.0,0.00039589,30]
[339898838,1728147088099,-500.0,0.00039589,30]
[339898839,1728147088109,-500.0,0.00039589,30]
[339898840,1728147088119,-500.0,0.00039589,30]
[339898841,1728147088129,-500.0,0.00039589,30]
[339898842,1728147088138,-500.0,0.00039589,30]
[339898843,1728147088147,-500.0,0.00039589,30]
[339898844,1728147088157,-150.0,0.00039589,30]
[339898845,1728147088166,-500.0,0.00039589,30]
[339898846,1728147088176,-500.0,0.00039589,30]
[339898847,1728147088185,-1155.52,0.00039589,30]
[339898848,1728147088195,-1004.11,0.00039589,30]
[339898849,1728147088205,-869.62,0.00039589,30]
[339898850,1728147088217,-500.0,0.00039589,30]
[339898851,1728147088233,-500.0,0.00039589,30]
[339898852,1728147088244,-500.0,0.00039589,30]
[339898853,1728147088254,-500.0,0.00039589,30]
[339898854,1728147088263,-577.41,0.00039589,30]
[339898855,1728147088273,-500.0,0.00039589,30]
[339898856,1728147088283,-1420.73,0.00039589,30]
[339898857,1728147088293,-500.0,0.00039589,30]
[339898858,1728147088303,-547.3,0.00039589,30]
[339898859,1728147088313,-500.0,0.00039589,30]
[339898860,1728147088323,-548.25,0.00039589,30]
[339898861,1728147088333,-500.0,0.00039589,30]
[339898862,1728147088347,-500.0,0.00039589,30]
[339898863,1728147088357,-500.0,0.00039589,30]
[339898864,1728147088367,-634.58,0.00039589,30]
[339898865,1728147088562,-500.0,0.00039589,30]
[339898866,1728147088572,-500.0,0.00039589,30]
[339898867,1728147088581,-593.12,0.00039589,30]
[339898868,1728147088590,-500.0,0.00039589,30]
[339898869,1728147088599,-500.0,0.00039589,30]
[339898870,1728147088608,-529.51,0.00039589,30]
[339898871,1728147088617,-1227.07,0.00039589,30]
[339898872,1728147088626,-500.0,0.00039589,30]
[339898873,1728147088636,-518.44,0.00039589,30]
[339898874,1728147088645,-500.0,0.00039589,30]
[339898875,1728147088654,-907.64,0.00039589,30]
[339898876,1728147088663,-500.0,0.00039589,30]
[339898877,1728147088673,-500.0,0.00039589,30]
[339898878,1728147088682,-500.0,0.00039589,30]
[339898879,1728147088692,-500.0,0.00039589,30]
[339898880,1728147088701,-500.0,0.00039589,30]
[339898881,1728147088710,-500.0,0.00039589,30]
[339898882,1728147088724,-500.0,0.00039589,30]
[339898883,1728147088733,-500.0,0.00039589,30]
[339898884,1728147088742,-500.0,0.00039589,30]
[339898885,1728147088751,-500.0,0.00039589,30]
[339898886,1728147088761,-500.0,0.00039589,30]
[339898887,1728147088770,-500.0,0.00039589,30]
[339898888,1728147088779,-597.48,0.00039589,30]
[339898889,1728147088789,-500.0,0.00039589,30]
[339898890,1728147088798,-500.0,0.00039589,30]
[339898891,1728147088807,-500.0,0.00039589,30]
[339898892,1728147088816,-500.0,0.00039589,30]
[339898893,1728147088826,-780.76,0.00039589,30]
[339898894,1728147088834,-500.0,0.00039589,30]
[339898895,1728147088844,-500.0,0.00039589,30]
[339898896,1728147088853,-1092.02,0.00039589,30]
[339898897,1728147088863,-500.0,0.00039589,30]
[339898898,1728147088872,-1147.66,0.00039589,30]
[339898899,1728147088881,-500.0,0.00039589,7]
[339898900,1728147088891,-500.0,0.00039589,30]
[339898901,1728147088900,-500.0,0.00039589,30]
[339898902,1728147088910,-500.0,0.00039589,30]
[339898903,1728147088920,-500.0,0.00039589,30]
[339898904,1728147088929,-500.0,0.00039589,30]
[339898905,1728147088938,-500.0,0.00039589,2]
[339898906,1728147088948,-500.0,0.00039589,30]
[339898907,1728147088957,-500.0,0.00039589,30]
[339898908,1728147088969,-500.0,0.00039589,30]
[339898909,1728147088979,-500.0,0.00039589,30]
[339898910,1728147088988,-605.99,0.00039589,30]
[339898911,1728147088997,-500.0,0.00039589,30]
[339898912,1728147089007,-500.0,0.00039589,30]
[339898913,1728147089016,-500.0,0.00039589,30]
[339898914,1728147089026,-500.0,0.00039589,30]
[339898915,1728147089035,-500.0,0.00039589,30]
[339898916,1728147089045,-959.8,0.00039589,30]
[339898917,1728147089054,-500.0,0.00039589,30]
[339898918,1728147089063,-500.0,0.00039589,30]
[339898919,1728147089072,-597.47,0.00039589,30]
[339898920,1728147089081,-500.0,0.00039589,30]
[339898921,1728147089090,-500.0,0.00039589,30]
[339898922,1728147089100,-500.0,0.00039589,30]
[339898923,1728147089109,-500.0,0.00039589,30]
[339898924,1728147089119,-200.0,0.00039589,7]
[339898925,1728147089128,-500.0,0.00039589,30]
[339898926,1728147089137,-500.0,0.00039589,30]
[339898927,1728147089146,-500.0,0.00039589,30]
[339898928,1728147089156,-500.0,0.00039589,30]
[339898929,1728147089165,-500.0,0.00039589,30]
[339898930,1728147089174,-500.0,0.00039589,30]
[339898931,1728147089184,-500.0,0.00039589,30]
[339898932,1728147089193,-1254.87,0.00039589,30]
[339898933,1728147089203,-500.0,0.00039589,30]
[339898934,1728147089212,-500.0,0.00039589,30]
[339898935,1728147089222,-500.0,0.00039589,30]
[339898936,1728147089231,-500.0,0.00039589,30]
[339898937,1728147089240,-1340.11,0.00039589,30]
[339898938,1728147089249,-500.0,0.00039589,30]
[339898939,1728147089258,-500.0,0.00039589,30]
[339898940,1728147089267,-500.0,0.00039589,30]
[339898941,1728147089276,-1185.33,0.00039589,30]
[339898942,1728147089285,-500.0,0.00039589,30]
[339898943,1728147089294,-477.86679121,0.00039589,30]
[339898944,1728147089303,-500.0,0.00039589,30]
[339898945,1728147089312,-500.0,0.00039589,30]
[339898946,1728147089321,-1060.42,0.00039589,30]
[339898947,1728147089331,-1130.0,0.00039589,30]
[339898948,1728147089343,-952.13,0.00039589,30]
[339898949,1728147089352,-500.0,0.00039589,30]
[339898950,1728147089361,-500.0,0.00039589,30]
[339898951,1728147089371,-500.0,0.00039589,30]
[339898952,1728147089381,-865.66,0.00039589,30]
[339898953,1728147089391,-996.76,0.00039589,30]
[339898954,1728147089400,-500.0,0.00039589,30]
[339898955,1728147089409,-500.0,0.00039589,30]
[339898956,1728147089418,-585.41,0.00039589,30]
[339898957,1728147089430,-1128.68,0.00039589,30]
[339898958,1728147089440,-500.0,0.00039589,30]
[339898959,1728147089451,-500.0,0.00039589,30]
[339898960,1728147089461,-999.01,0.00039589,30]
[339898961,1728147089472,-1208.3,0.00039589,30]
[339898962,1728147089481,-500.0,0.00039589,30]
[339898963,1728147089491,-500.0,0.00039589,30]
[339898964,1728147089500,-500.0,0.00039589,30]
[339898965,1728147089509,-500.0,0.00039589,30]
[339898966,1728147089518,-500.0,0.00039589,30]
[339898967,1728147089527,-500.0,0.00039589,30]
[339898968,1728147089537,-508.91,0.00039589,30]
[339898969,1728147089546,-868.76,0.00039589,30]
[339898970,1728147089556,-256.915576,0.00039589,14]
[339898971,1728147089565,-446.8030763,0.00039589,30]
[339898972,1728147089574,-150.0,0.00039589,30]
[339898973,1728147089582,-1096.8,0.00039589,30]
[339898974,1728147089591,-500.0,0.00039589,30]
[339898975,1728147089601,-613.51,0.00039589,30]
[339898976,1728147089610,-930.7,0.00039589,30]
[339898977,1728147089620,-500.0,0.00039589,30]
[339898978,1728147089629,-646.65,0.00039589,30]
[339898979,1728147089639,-1272.74,0.00039589,30]
[339898980,1728147089648,-504.49,0.00039589,30]
[339898981,1728147089657,-937.71,0.00039589,30]
[339898982,1728147089666,-845.63,0.00039589,30]
[339898983,1728147089676,-500.0,0.00039589,30]
[339898984,1728147089685,-500.0,0.00039589,30]
[339898985,1728147089698,-1381.8,0.00039589,30]
[339898986,1728147089707,-500.0,0.00039589,30]
[339898987,1728147089717,-500.0,0.00039589,30]
[339898988,1728147089727,-500.0,0.00039589,30]
[339898989,1728147089736,-500.0,0.00039589,30]
[339898990,1728147089745,-500.0,0.00039589,30]
[339898991,1728147089755,-500.0,0.00039589,30]
[339898992,1728147089764,-741.0,0.00039589,30]
[339898993,1728147089774,-500.0,0.00039589,30]
[339898994,1728147089783,-982.24,0.00039589,30]
[339898995,1728147089792,-500.0,0.00039589,30]
[339898996,1728147089802,-500.0,0.00039589,30]
[339898997,1728147089811,-1105.62,0.00039589,30]
[339898998,1728147089820,-500.0,0.00039589,30]
[339898999,1728147089829,-500.0,0.00039589,30]
[339899000,1728147089840,-500.0,0.00039589,30]
[339899001,1728147089849,-500.0,0.00039589,30]
[339899002,1728147089859,-595.85306199,0.00039589,30]
[339899003,1728147089868,-877.47,0.00039589,30]
[339899004,1728147089878,-500.0,0.00039589,30]
[339899005,1728147089887,-500.0,0.00039589,30]
[339899006,1728147089896,-151.0,0.00039589,14]
[339899007,1728147089906,-500.0,0.00039589,30]
[339899008,1728147089915,-151.0,0.00039589,14]
[339899009,1728147089924,-994.36,0.00039589,30]
[339899010,1728147089933,-500.0,0.00039589,30]
[339899011,1728147089942,-1035.51,0.00039589,30]
[339899012,1728147089951,-500.0,0.00039589,30]
[339899013,1728147089960,-500.0,0.00039589,30]
[339899014,1728147089970,-500.0,0.00039589,30]
[339899015,1728147089981,-989.87,0.00039589,30]
[339899016,1728147089990,-500.0,0.00039589,30]
[339899017,1728147089999,-500.0,0.00039589,30]
[339899018,1728147090008,-871.55,0.00039589,30]
[339899019,1728147090017,-500.0,0.00039589,30]
[339899020,1728147090026,-1333.03,0.00039589,30]
[339899021,1728147090036,-925.19,0.00039589,30]
[339899022,1728147090045,-500.0,0.00039589,30]
[339899023,1728147090054,-500.0,0.00039589,30]
[339899024,1728147090063,-500.0,0.00039589,30]
[339899025,1728147090072,-1502.02,0.00039589,30]
[339899026,1728147090081,-889.77,0.00039589,30]
[339899027,1728147090090,-600.24,0.00039589,30]
[339899028,1728147090099,-493.86523728,0.00039589,30]
[339899029,1728147090109,-717.54,0.00039589,30]
[339899030,1728147090118,-963.18,0.00039589,30]
[339899031,1728147090127,-500.0,0.00039589,5]
[339899032,1728147090137,-551.7,0.00039589,30]
[339899033,1728147090148,-584.17,0.00039589,30]
[339899034,1728147090158,-1246.88,0.00039589,30]
[339899035,1728147090167,-518.72,0.00039589,30]
[339899036,1728147090177,-500.0,0.00039589,30]
[339899037,1728147090186,-500.0,0.00039589,30]
[339899038,1728147090195,-500.0,0.00039589,30]
[339899039,1728147090205,-500.0,0.00039589,30]
[339899040,1728147090214,-500.0,0.00039589,30]
[339899041,1728147090224,-1465.78,0.00039589,30]
[339899042,1728147090234,-500.0,0.00039589,30]
[339899043,1728147090243,-1472.61,0.00039589,30]
[339899044,1728147090251,-500.0,0.00039589,30]
[339899045,1728147090260,-848.55,0.00039589,30]
[339899046,1728147090270,-500.0,0.00039589,30]
[339899047,1728147090280,-500.0,0.00039589,30]
[339899048,1728147090289,-503.04407745,0.00039589,30]
[339899049,1728147090298,-779.41,0.00039589,30]
[339899050,1728147090308,-500.0,0.00039589,30]
[339899051,1728147090317,-500.0,0.00039589,30]
[339899052,1728147090326,-500.0,0.00039589,30]
[339899053,1728147090338,-500.0,0.00039589,30]
[339899054,1728147090347,-500.0,0.00039589,30]
[339899055,1728147090356,-777.28,0.00039589,30]
[339899056,1728147090365,-500.0,0.00039589,30]
[339899057,1728147090374,-1683.21,0.00039589,30]
[339899058,1728147090383,-500.0,0.00039589,30]
[339899059,1728147090393,-500.0,0.00039589,30]
[339899060,1728147090402,-500.0,0.00039589,30]
[339899061,1728147090411,-1078.6,0.00039589,30]
[339899062,1728147090420,-1725.49,0.00039589,30]
[339899063,1728147090429,-603.42365158,0.00039589,30]
[339899064,1728147090438,-500.0,0.00039589,30]
[339899065,1728147090448,-587.6,0.00039589,30]
[339899066,1728147090457,-659.83,0.00039589,30]
[339899067,1728147090467,-600.74,0.00039589,30]
[339899068,1728147090476,-500.0,0.00039589,30]
[339899069,1728147090486,-500.0,0.00039589,30]
[339899070,1728147090495,-500.0,0.00039589,30]
[339899071,1728147090504,-706.43,0.00039589,30]
[339899072,1728147090513,-1054.81,0.00039589,30]
[339899073,1728147090522,-500.0,0.00039589,30]
[339899074,1728147090531,-500.0,0.00039589,30]
[339899075,1728147090540,-500.0,0.00039589,30]
[339899076,1728147090549,-500.0,0.00039589,30]
[339899077,1728147090558,-1280.81,0.00039589,30]
[339899078,1728147090567,-500.0,0.00039589,30]
[339899079,1728147090576,-500.0,0.00039589,30]
[339899080,1728147090585,-500.0,0.00039589,30]
[339899081,1728147090594,-1363.15,0.00039589,30]
[339899082,1728147090603,-500.0,0.00039589,30]
[339899083,1728147090612,-598.99457838,0.00039589,30]
[339899084,1728147090622,-500.0,0.00039589,30]
[339899085,1728147090632,-500.0,0.00039589,30]
[339899086,1728147090641,-500.0,0.00039589,30]
[339899087,1728147090650,-905.57,0.00039589,30]
[339899088,1728147090659,-337.1676816,0.00039589,30]
[339899089,1728147090669,-500.0,0.00039589,30]
[339899090,1728147090678,-1235.27,0.00039589,30]
[339899091,1728147090688,-1284.12,0.00039589,30]
[339899092,1728147090697,-500.0,0.00039589,30]
[339899093,1728147090707,-500.0,0.00039589,30]
[339899094,1728147090716,-500.0,0.00039589,30]
[339899095,1728147090726,-500.0,0.00039589,30]
[339899096,1728147090735,-637.05,0.00039589,30]
[339899097,1728147090744,-500.0,0.00039589,30]
[339899098,1728147090754,-500.0,0.00039589,30]
[339899099,1728147090763,-1285.68,0.00039589,30]
[339899100,1728147090772,-503.25,0.00039589,30]
[339899101,1728147090781,-500.0,0.00039589,30]
[339899102,1728147090791,-500.0,0.00039589,30]
[339899103,1728147090800,-500.0,0.00039589,30]
[339899104,1728147090809,-500.0,0.00039589,30]
[339899105,1728147090818,-500.0,0.00039589,30]
[339899106,1728147090827,-938.91,0.00039589,30]
[339899107,1728147090836,-505.84519745,0.00039589,30]
[339899108,1728147090846,-500.0,0.00039589,30]
[339899109,1728147090855,-500.0,0.00039589,30]
[339899110,1728147090864,-500.0,0.00039589,30]
[339899111,1728147090874,-1214.24,0.00039589,30]
[339899112,1728147090883,-669.13,0.00039589,30]
[339899113,1728147090892,-950.76,0.00039589,30]
[339899114,1728147090902,-500.0,0.00039589,30]
[339899115,1728147090911,-1555.77,0.00039589,30]
[339899116,1728147090920,-1046.87,0.00039589,30]
[339899117,1728147090930,-500.0,0.00039589,30]
[339899118,1728147090939,-500.0,0.00039589,30]
[339899119,1728147090947,-1000.0,0.00039589,30]
[339899120,1728147090956,-591.17267152,0.00039589,30]
[339899121,1728147090965,-766.5,0.00039589,30]
[339899122,1728147090976,-1076.33,0.00039589,30]
[339899123,1728147090985,-500.0,0.00039589,30]
[339899124,1728147090994,-500.0,0.00039589,30]
[339899125,1728147091003,-500.0,0.00039589,30]
[339899126,1728147091012,-500.0,0.00039589,30]
[339899127,1728147091022,-773.6,0.00039589,30]
[339899128,1728147091032,-500.0,0.00039589,30]
[339899129,1728147091042,-956.46,0.00039589,30]
[339899130,1728147091052,-500.0,0.00039589,30]
[339899131,1728147091061,-500.0,0.00039589,30]
[339899132,1728147091071,-500.0,0.00039589,30]
[339899133,1728147091080,-500.0,0.00039589,2]
[339899134,1728147091089,-500.0,0.00039589,30]
[339899135,1728147091099,-500.0,0.00039589,30]
[339899136,1728147091107,-500.0,0.00039589,30]
[339899137,1728147091117,-500.0,0.00039589,30]
[339899138,1728147091125,-500.0,0.00039589,30]
[339899139,1728147091134,-1442.35,0.00039589,30]
[339899140,1728147091144,-1211.84,0.00039589,30]
[339899141,1728147091153,-500.0,0.00039589,30]
[339899142,1728147091163,-157.31418615,0.00039589,30]
[339899143,1728147091172,-658.69,0.00039589,30]
[339899144,1728147091182,-1361.72,0.00039589,24]
[339899145,1728147091191,-500.0,0.00039589,30]
[339899146,1728147091201,-500.0,0.00039589,30]
[339899147,1728147091210,-1120.5,0.00039589,30]
[339899148,1728147091221,-500.0,0.00039589,30]
[339899149,1728147091231,-500.0,0.00039589,30]
[339899150,1728147091240,-500.0,0.00039589,30]
[339899151,1728147091249,-1128.3,0.00039589,30]
[339899152,1728147091259,-500.0,0.00039589,30]
[339899153,1728147091267,-500.0,0.00039589,30]
[339899154,1728147091276,-500.0,0.00039589,30]
[339899155,1728147091287,-500.0,0.00039589,30]
[339899156,1728147091296,-627.25,0.00039589,30]
[339899157,1728147091306,-723.77,0.00039589,30]
[339899158,1728147091315,-500.0,0.00039589,30]
[339899159,1728147091324,-500.0,0.00039589,30]
[339899160,1728147091334,-1143.9,0.00039589,30]
[339899161,1728147091346,-502.75,0.00039589,30]
[339899162,1728147091355,-500.0,0.00039589,30]
[339899163,1728147091364,-1054.07,0.00039589,30]
[339899164,1728147091373,-500.0,0.00039589,30]
[339899165,1728147091382,-500.0,0.00039589,30]
[339899166,1728147091391,-1458.38,0.00039589,30]
[339899167,1728147091401,-532.24802082,0.00039589,30]
[339899168,1728147091410,-500.0,0.00039589,30]
[339899169,1728147091420,-680.05,0.00039589,30]
[339899170,1728147091430,-151.0,0.00039589,14]
[339899171,1728147091439,-2308.66,0.00039589,30]
[339899172,1728147091448,-526.17,0.00039589,30]
[339899173,1728147091457,-500.0,0.00039589,30]
[339899174,1728147091468,-958.76,0.00039589,30]
[339899175,1728147091477,-500.0,0.00039589,30]
[339899176,1728147091487,-500.0,0.00039589,30]
[339899177,1728147091496,-521.35,0.00039589,30]
[339899178,1728147091505,-772.75,0.00039589,30]
[339899179,1728147091515,-668.383726,0.00039589,14]
[339899180,1728147091523,-957.22,0.00039589,30]
[339899181,1728147091533,-500.0,0.00039589,30]
[339899182,1728147091542,-668.383726,0.00039589,14]
[339899183,1728147091551,-500.0,0.00039589,30]
[339899184,1728147091560,-1182.56,0.00039589,30]
[339899185,1728147091570,-658.49,0.00039589,30]
[339899186,1728147091579,-500.0,0.00039589,30]
[339899187,1728147091588,-500.0,0.00039589,30]
[339899188,1728147091597,-500.0,0.00039589,30]
[339899189,1728147091607,-500.0,0.00039589,30]
[339899190,1728147091616,-500.0,0.00039589,30]
[339899191,1728147091625,-500.0,0.00039589,30]
[339899192,1728147091634,-764.47,0.00039589,30]
[339899193,1728147091643,-500.0,0.00039589,30]
[339899194,1728147091653,-500.0,0.00039589,30]
[339899195,1728147091662,-500.0,0.00039589,30]
[339899196,1728147091671,-1230.05,0.00039589,30]
[339899197,1728147091681,-500.0,0.00039589,30]
[339899198,1728147091690,-500.0,0.00039589,30]
[339899199,1728147091700,-500.0,0.00039589,30]
[339899200,1728147091709,-872.43,0.00039589,30]
[339899201,1728147091721,-500.0,0.00039589,30]
[339899202,1728147091730,-500.0,0.00039589,30]
[339899203,1728147091739,-500.0,0.00039589,30]
[339899204,1728147091748,-611.65,0.00039589,30]
[339899205,1728147091757,-500.0,0.00039589,30]
[339899206,1728147091768,-500.0,0.00039589,30]
[339899207,1728147091777,-842.7,0.00039589,30]
[339899208,1728147091786,-500.0,0.00039589,30]
[339899209,1728147091795,-500.0,0.00039589,30]
[339899210,1728147091805,-821.45,0.00039589,30]
[339899211,1728147091814,-1020.54,0.00039589,30]
[339899212,1728147091823,-500.0,0.00039589,30]
[339899213,1728147091832,-500.0,0.00039589,30]
[339899214,1728147091841,-500.0,0.00039589,30]
[339899215,1728147091850,-502.67759737,0.00039589,30]
[339899216,1728147091859,-508.95,0.00039589,30]
[339899217,1728147091868,-500.0,0.00039589,30]
[339899218,1728147091878,-500.0,0.00039589,30]
[339899219,1728147091887,-500.0,0.00039589,30]
[339899220,1728147091896,-500.0,0.00039589,30]
[339899221,1728147091905,-500.0,0.00039589,30]
[339899222,1728147091914,-1095.31,0.00039589,30]
[339899223,1728147091924,-1129.38,0.00039589,30]
[339899224,1728147091934,-500.0,0.00039589,30]
[339899225,1728147091943,-500.0,0.00039589,30]
[339899226,1728147091953,-500.0,0.00039589,30]
[339899227,1728147091962,-500.0,0.00039589,30]
[339899228,1728147091972,-560.33323155,0.00039589,30]
[339899229,1728147092174,-500.0,0.00039589,30]
[339899230,1728147092183,-500.0,0.00039589,30]
[339899231,1728147092194,-500.0,0.00039589,30]
[339899232,1728147092203,-794.7,0.00039589,30]
[339899233,1728147092213,-500.0,0.00039589,30]
[339899234,1728147092224,-500.0,0.00039589,30]
[339899235,1728147092233,-500.0,0.00039589,30]
[339899236,1728147092243,-830.85,0.00039589,30]
[339899237,1728147092253,-500.0,0.00039589,30]
[339899238,1728147092262,-1027.89,0.00039589,30]
[339899239,1728147092271,-500.0,0.00039589,30]
[339899240,1728147092280,-500.0,0.00039589,30]
[339899241,1728147092289,-1487.21,0.00039589,30]
[339899242,1728147092299,-500.0,0.00039589,30]
[339899243,1728147092308,-1056.64,0.00039589,30]
[339899244,1728147092317,-500.0,0.00039589,30]
[339899245,1728147092326,-500.0,0.00039589,30]
[339899246,1728147092336,-500.0,0.00039589,30]
[339899247,1728147092346,-500.0,0.00039589,30]
[339899248,1728147092355,-966.23,0.00039589,30]
[339899249,1728147092365,-500.0,0.00039589,30]
[339899250,1728147092374,-500.0,0.00039589,30]
[339899251,1728147092384,-1402.9,0.00039589,30]
[339899252,1728147092394,-500.0,0.00039589,30]
[339899253,1728147092403,-155.637596,0.00039589,30]